fUST/lending_fUST_20240803
["ID","MTS","AMOUNT","RATE_DAILY","PERIOD"]
[333975583,1722658241789,-514.98796616,0.00013698,2]
[333975584,1722658241798,-501.49142423,0.00013698,2]
[333975585,1722658241808,-500.0,0.00013698,2]
[333975586,1722658241817,-1990.15,0.00013698,2]
[333975587,1722658241827,-500.0,0.00013698,2]
[333975588,1722658241836,-746.01,0.00013698,2]
[333975589,1722658241845,-500.0,0.00013698,2]
[333975590,1722658241855,-151.0,0.00013698,2]
[333975591,1722658241864,-500.0,0.00013698,2]
[333975592,1722658241874,-1231.28,0.00013698,2]
[333975593,1722658241884,-151.0,0.00013698,2]
[333975594,1722658241893,-151.0,0.00013698,2]
[333975595,1722658241903,-500.0,0.00013698,2]
[333975596,1722658241914,-500.0,0.00013698,2]
[333975597,1722658241925,-500.0,0.00013698,2]
[333975598,1722658241936,-500.0,0.00013698,2]
[333975599,1722658241946,-500.0,0.00013698,2]
[333975600,1722658241957,-724.67,0.00013698,2]
[333975601,1722658241968,-724.67,0.00013698,2]
[333975602,1722658241978,-724.67,0.00013698,2]
[333975603,1722658241989,-724.67,0.00013698,2]
[333975604,1722658242000,-724.67,0.00013698,2]
[333975605,1722658242015,-719.31,0.00013698,2]
[333975606,1722658242026,-500.0,0.00013698,2]
[333975607,1722658242038,-509.34583423,0.00013698,2]
[333975608,1722658242050,-1431.35,0.00013698,2]
[333975609,1722658242060,-616.23,0.00013698,2]
[333975610,1722658242071,-500.0,0.00013698,2]
[333975611,1722658242082,-1333.25,0.00013698,2]
[333975612,1722658242092,-151.0,0.00013698,2]
[333975613,1722658242102,-445.9911003,0.00013698,2]
[333975614,1722658242112,-500.0,0.00013698,2]
[333975615,1722658242122,-505.89692779,0.00013698,2]
[333975616,1722658242132,-500.0,0.00013698,2]
[333975617,1722658242143,-151.0,0.00013698,2]
[333975618,1722658242153,-512.58577606,0.00013698,2]
[333975619,1722658242163,-648.46,0.00013698,2]
[333975620,1722658242175,-500.0,0.00013698,2]
[333975621,1722658242189,-500.0,0.00013698,2]
[333975622,1722658242199,-356.81544732,0.00013698,2]
[333975623,1722658242211,-545.03813334,0.00013698,2]
[333975624,1722658242223,-500.0,0.00013698,2]
[333975625,1722658242234,-5167.91,0.00013698,2]
[333975626,1722658242246,-1324.82,0.00013698,2]
[333975627,1722658242256,-503.55529295,0.00013698,2]
[333975628,1722658242266,-500.0,0.00013698,2]
[333975629,1722658242276,-500.0,0.00013698,2]
[333975630,1722658242286,-500.0,0.00013698,2]
[333975631,1722658242296,-874.23,0.00013698,2]
[333975632,1722658242307,-500.0,0.00013698,2]
[333975633,1722658242318,-485.178038,0.00013698,2]
[333975634,1722658242327,-500.0,0.00013698,2]
[333975635,1722658242336,-500.0,0.00013698,2]
[333975636,1722658242345,-485.178038,0.00013698,2]
[333975637,1722658242355,-500.0,0.00013698,2]
[333975638,1722658242364,-151.0,0.00013698,2]
[333975639,1722658242374,-500.0,0.00013698,2]
[333975640,1722658242383,-151.0,0.00013699,2]
[333975641,1722658242393,-2362.03993,0.000137,2]
[333975642,1722658242403,-150.112233,0.000137,2]
[333975643,1722658242412,-206.960494,0.000137,2]
[333975644,1722658242422,-335.097043,0.000137,2]
[333975645,1722658242432,-335.097043,0.000137,2]
[333975646,1722658242443,-151.0,0.000137,2]
[333975647,1722658242538,-151.0,0.00013727,2]
[333975648,1722658242551,-152.10323,0.00013727,2]
[333975649,1722658242561,-151.0,0.00013727,2]
[333975650,1722658242571,-151.0,0.00013727,2]
[333975651,1722658242582,-151.0,0.00013727,2]
[333975652,1722658242591,-312.744554,0.00013727,2]
[333975653,1722658242601,-312.744554,0.00013727,2]
[333975654,1722658242610,-763.73696943,0.00013735,2]
[333975655,1722658242621,-981.89885042,0.00013742,2]
[333975656,1722658242630,-485.178038,0.00013742,2]
[333975657,1722658242641,-485.178038,0.00013742,2]
[333975658,1722658242651,-763.73696943,0.00013803,2]
[333975659,1722658242661,-259.067118,0.00013862,2]
[333975660,1722658242673,-151.0,0.00013862,2]
[333975661,1722658242684,-6537.15353568,0.00013862,2]
[333975662,1722658242833,-3295.33942545,0.00013862,2]
[333975682,1722658243627,-500.0,0.00013698,2]
[333975683,1722658243638,-654.78,0.00013698,2]
[333975684,1722658243648,-6866.43012717,0.00013862,2]
[333975685,1722658243657,-95.35670755,0.00013872,2]
[333975695,1722658246583,-617.63484737,0.00013872,2]
[333975696,1722658280499,854.50736198,9.999e-05,2]
[333975697,1722658310744,156.36084615,9.999e-05,2]
[333975698,1722658325496,190.4105277,9.999e-05,2]
[333975699,1722658327925,4140.06892891,9.999e-05,2]
[333975700,1722658431117,155.02604799,9.999e-05,2]
[333975701,1722658453484,6407.0,0.00027,120]
[333975702,1722658456478,182.64224863,9.999e-05,2]
[333975703,1722658456929,328.61668616,9.999e-05,2]
[333975704,1722658505244,1652.49101254,9.999e-05,2]
[333975705,1722658519972,157.18400185,9.999e-05,2]
[333975706,1722658526385,155.21607294,9.999e-05,2]
[333975707,1722658599134,188.2181997,9.999e-05,2]
[333975708,1722658615782,154.87869486,9.999e-05,2]
[333975709,1722658681241,465.54867162,9.999e-05,2]
[333975710,1722658700190,188.85815312,9.999e-05,2]
[333975712,1722659061387,2200.38416012,0.00027,120]
[333975713,1722659068663,154.86836189,9.999e-05,2]
[333975714,1722659221338,183.09163924,9.999e-05,2]
[333975717,1722659280205,319.70105146,9.999e-05,2]
[333975721,1722659314344,233.46050357,9.999e-05,2]
[333975722,1722659376204,320.76058066,9.999e-05,2]
[333975744,1722659432705,-300.0,0.0001201,2]
[333975747,1722659432718,-816.62952035,0.00012011,2]
[333975769,1722659438667,-24083.37047965,0.00012011,2]
[333975770,1722659438676,-309.46598229,0.00012119,2]
[333975771,1722659438686,-169.318182,0.00012986,2]
[333975772,1722659438696,-420.0,0.00013211,2]
[333975773,1722659438706,-500.0,0.00013246,2]
[333975774,1722659438716,-500.0,0.00013246,2]
[333975775,1722659438725,-500.0,0.00013246,2]
[333975776,1722659438841,-500.0,0.00013246,2]
[333975777,1722659438852,-500.0,0.00013246,2]
[333975778,1722659438864,-500.0,0.00013246,2]
[333975779,1722659438874,-500.0,0.00013246,2]
[333975780,1722659438885,-500.0,0.00013246,2]
[333975781,1722659438895,-500.0,0.00013246,2]
[333975782,1722659438906,-500.0,0.00013246,2]
[333975783,1722659438917,-500.0,0.00013246,2]
[333975784,1722659438926,-500.0,0.00013246,2]
[333975785,1722659438946,-500.0,0.00013246,2]
[333975786,1722659438957,-500.0,0.00013246,2]
[333975787,1722659438967,-500.0,0.00013246,2]
[333975788,1722659438977,-500.0,0.00013246,2]
[333975789,1722659438988,-500.0,0.00013246,2]
[333975791,1722659438998,-500.0,0.00013246,2]
[333975793,1722659439009,-500.0,0.00013246,2]
[333975794,1722659439020,-500.0,0.00013246,2]
[333975795,1722659439032,-500.0,0.00013246,2]
[333975796,1722659439042,-500.0,0.00013246,2]
[333975797,1722659439052,-500.0,0.00013246,2]
[333975798,1722659439063,-500.0,0.00013246,2]
[333975799,1722659439075,-500.0,0.00013246,2]
[333975800,1722659439087,-500.0,0.00013246,2]
[333975801,1722659439098,-500.0,0.00013246,2]
[333975802,1722659439110,-500.0,0.00013246,2]
[333975803,1722659439121,-500.0,0.00013246,2]
[333975804,1722659439132,-500.0,0.00013246,2]
[333975805,1722659439142,-500.0,0.00013246,2]
[333975806,1722659439153,-500.0,0.00013246,2]
[333975807,1722659439165,-500.0,0.00013246,2]
[333975808,1722659439176,-500.0,0.00013246,2]
[333975809,1722659439187,-500.0,0.00013246,2]
[333975810,1722659439197,-500.0,0.00013246,2]
[333975811,1722659439209,-500.0,0.00013246,2]
[333975812,1722659439220,-500.0,0.00013246,2]
[333975813,1722659439230,-500.0,0.00013246,2]
[333975814,1722659439241,-500.0,0.00013246,2]
[333975815,1722659439251,-500.0,0.00013246,2]
[333975816,1722659439261,-500.0,0.00013246,2]
[333975817,1722659439271,-500.0,0.00013246,2]
[333975818,1722659439281,-500.0,0.00013246,2]
[333975819,1722659439292,-500.0,0.00013246,2]
[333975820,1722659439303,-500.0,0.00013246,2]
[333975821,1722659439313,-500.0,0.00013246,2]
[333975822,1722659439324,-500.0,0.00013246,2]
[333975823,1722659439336,-500.0,0.00013246,2]
[333975824,1722659439348,-500.0,0.00013246,2]
[333975825,1722659439359,-500.0,0.00013246,2]
[333975826,1722659439370,-500.0,0.00013246,2]
[333975827,1722659439383,-500.0,0.00013246,2]
[333975828,1722659439393,-500.0,0.00013246,2]
[333975829,1722659439403,-500.0,0.00013246,2]
[333975830,1722659439413,-500.0,0.00013246,2]
[333975831,1722659439422,-500.0,0.00013246,2]
[333975832,1722659439433,-500.0,0.00013246,2]
[333975833,1722659439443,-500.0,0.00013246,2]
[333975834,1722659439452,-500.0,0.00013246,2]
[333975835,1722659439467,-500.0,0.00013246,2]
[333975836,1722659439477,-224.61,0.00013246,2]
[333975837,1722659439487,-500.0,0.00013246,2]
[333975838,1722659439497,-500.0,0.00013246,2]
[333975839,1722659439507,-500.0,0.00013246,2]
[333975840,1722659439518,-514.78,0.00013246,2]
[333975841,1722659439530,-500.0,0.00013246,2]
[333975842,1722659439542,-500.0,0.00013246,2]
[333975843,1722659439553,-588.82,0.00013246,2]
[333975844,1722659439565,-500.0,0.00013246,2]
[333975845,1722659439575,-500.0,0.00013246,2]
[333975846,1722659439585,-500.0,0.00013246,2]
[333975847,1722659439595,-500.0,0.00013246,2]
[333975848,1722659439605,-500.0,0.00013246,2]
[333975849,1722659439614,-500.0,0.00013246,2]
[333975850,1722659439624,-500.0,0.00013246,2]
[333975851,1722659439634,-500.0,0.00013246,2]
[333975852,1722659439644,-500.0,0.00013246,2]
[333975853,1722659439654,-500.0,0.00013246,2]
[333975854,1722659439669,-500.0,0.00013246,2]
[333975855,1722659439680,-500.0,0.00013246,2]
[333975856,1722659439690,-500.0,0.00013246,2]
[333975857,1722659439699,-500.0,0.00013246,2]
[333975858,1722659439709,-500.0,0.00013246,2]
[333975859,1722659439720,-500.0,0.00013246,2]
[333975860,1722659439732,-500.0,0.00013246,2]
[333975861,1722659439742,-500.0,0.00013246,2]
[333975862,1722659439754,-500.0,0.00013246,2]
[333975863,1722659439765,-500.0,0.00013246,2]
[333975864,1722659439778,-500.0,0.00013246,2]
[333975865,1722659439789,-500.0,0.00013246,2]
[333975866,1722659439801,-500.0,0.00013246,2]
[333975867,1722659439811,-500.0,0.00013246,2]
[333975868,1722659439821,-316.88,0.00013246,2]
[333975869,1722659439834,-512.30265398,0.00013573,2]
[333975870,1722659439845,-315.64387069,0.00013588,2]
[333975871,1722659439857,-315.64387067,0.00013591,2]
[333975872,1722659439868,-315.64387067,0.00013593,2]
[333975873,1722659439880,-315.64387067,0.00013596,2]
[333975874,1722659439892,-315.64387067,0.00013598,2]
[333975875,1722659439902,-1580.94550185,0.00013598,2]
[333975876,1722659439913,-1859.24723616,0.00013598,2]
[333975877,1722659439923,-964.94778795,0.00013598,2]
[333975878,1722659439932,-3797.23280722,0.00013639,2]
[333975879,1722659439942,-59995.07974434,0.00013686,2]
[333975880,1722659439951,-30488.2047496,0.00013688,2]
[333975881,1722659439960,-5944.69109115,0.00013688,5]
[333975882,1722659439970,-213417.433247,0.00013688,2]
[333975883,1722659439980,-774.25,0.00013697,2]
[333975884,1722659439989,-774.25,0.00013697,2]
[333975885,1722659439999,-774.25,0.00013697,2]
[333975886,1722659440008,-24680.24772114,0.00013698,5]
[333975887,1722659440022,-1997.0,0.00013698,5]
[333975890,1722659440711,-8946.45014597,0.00013698,5]
[333975891,1722659440722,-500.0,0.00013698,2]
[333975892,1722659440734,-500.0,0.00013698,2]
[333975893,1722659440746,-501.26773467,0.00013698,2]
[333975894,1722659440757,-503.1686396,0.00013698,2]
[333975895,1722659440768,-504.63731854,0.00013698,2]
[333975896,1722659440777,-500.0,0.00013698,2]
[333975897,1722659440789,-500.0,0.00013698,2]
[333975898,1722659440800,-500.23485866,0.00013698,2]
[333975900,1722659440810,-500.0,0.00013698,2]
[333975902,1722659440820,-653.98,0.00013698,2]
[333975904,1722659440831,-500.0,0.00013698,2]
[333975906,1722659440841,-512.63214859,0.00013698,2]
[333975908,1722659440853,-501.40327288,0.00013698,2]
[333975910,1722659440864,-503.4806096,0.00013698,2]
[333975911,1722659440875,-516.70447889,0.00013698,2]
[333975912,1722659440888,-500.0,0.00013698,2]
[333975913,1722659440899,-202.21917248,0.00013698,2]
[333975914,1722659440910,-298.29774428,0.00013698,2]
[333975915,1722659440922,-500.0,0.00013698,2]
[333975916,1722659440933,-516.00761704,0.00013698,2]
[333975917,1722659440943,-500.89821885,0.00013698,2]
[333975918,1722659440953,-500.0,0.00013698,2]
[333975919,1722659440963,-500.0,0.00013698,2]
[333975920,1722659440973,-511.56807607,0.00013698,2]
[333975921,1722659440983,-500.0,0.00013698,2]
[333975922,1722659440994,-500.0,0.00013698,2]
[333975923,1722659441003,-513.35546755,0.00013698,2]
[333975924,1722659441013,-502.18766281,0.00013698,2]
[333975925,1722659441023,-500.0,0.00013698,2]
[333975926,1722659441032,-506.27259331,0.00013698,2]
[333975927,1722659441042,-500.0,0.00013698,2]
[333975928,1722659441051,-504.00107773,0.00013698,2]
[333975929,1722659441061,-504.80382824,0.00013698,2]
[333975930,1722659441071,-500.0,0.00013698,2]
[333975931,1722659441080,-509.93603188,0.00013698,2]
[333975932,1722659441089,-500.0,0.00013698,2]
[333975933,1722659441099,-505.21436829,0.00013698,2]
[333975934,1722659441108,-503.3226659,0.00013698,2]
[333975935,1722659441117,-500.0,0.00013698,2]
[333975936,1722659441126,-500.0,0.00013698,2]
[333975937,1722659441136,-500.0,0.00013698,2]
[333975938,1722659441146,-501.58892371,0.00013698,2]
[333975939,1722659441158,-500.0,0.00013698,2]
[333975940,1722659441170,-507.3824845,0.00013698,2]
[333975941,1722659441181,-503.70317355,0.00013698,2]
[333975942,1722659441192,-500.0,0.00013698,2]
[333975943,1722659441201,-500.0,0.00013698,2]
[333975944,1722659441211,-503.00025954,0.00013698,2]
[333975945,1722659441220,-500.0,0.00013698,2]
[333975946,1722659441229,-529.8246672,0.00013698,2]
[333975947,1722659441239,-506.02308493,0.00013698,2]
[333975948,1722659441248,-500.0,0.00013698,2]
[333975949,1722659441258,-508.08071063,0.00013698,2]
[333975950,1722659441267,-500.0,0.00013698,2]
[333975951,1722659441277,-514.90195416,0.00013698,2]
[333975952,1722659441286,-500.0,0.00013698,2]
[333975953,1722659441295,-500.0,0.00013698,2]
[333975954,1722659441305,-500.0,0.00013698,2]
[333975955,1722659441314,-512.87472869,0.00013698,2]
[333975956,1722659441411,-500.0,0.00013698,2]
[333975957,1722659441421,-500.0,0.00013698,2]
[333975958,1722659441432,-478.50730719,0.00013698,2]
[333975959,1722659441441,-504.91443185,0.00013698,2]
[333975960,1722659441453,-505.5090072,0.00013698,2]
[333975961,1722659441465,-500.0,0.00013698,2]
[333975962,1722659441475,-500.0,0.00013698,2]
[333975963,1722659441483,-500.0,0.00013698,2]
[333975964,1722659441493,-503.66921433,0.00013698,2]
[333975965,1722659441502,-500.0,0.00013698,2]
[333975966,1722659441511,-500.0,0.00013698,2]
[333975967,1722659441522,-502.71709055,0.00013698,2]
[333975968,1722659441535,-500.0,0.00013698,2]
[333975969,1722659441545,-500.0,0.00013698,2]
[333975970,1722659441557,-500.0,0.00013698,2]
[333975971,1722659441568,-500.0,0.00013698,2]
[333975972,1722659441580,-500.0,0.00013698,2]
[333975973,1722659441589,-500.0,0.00013698,2]
[333975974,1722659441602,-500.0,0.00013698,2]
[333975975,1722659441613,-518.87141673,0.00013698,2]
[333975976,1722659441623,-500.0,0.00013698,2]
[333975977,1722659441635,-500.0,0.00013698,2]
[333975978,1722659441647,-260.00566279,0.00013698,2]
[333975979,1722659441656,-500.0,0.00013698,2]
[333975980,1722659441665,-500.0,0.00013698,2]
[333975981,1722659441674,-500.0,0.00013698,2]
[333975982,1722659441683,-500.0,0.00013698,2]
[333975983,1722659441693,-637.65630567,0.00013698,2]
[333975984,1722659441702,-500.0,0.00013698,2]
[333975985,1722659441712,-500.0,0.00013698,2]
[333975986,1722659441721,-500.0,0.00013698,2]
[333975987,1722659441731,-221.77516886,0.00013698,2]
[333975988,1722659441741,-301.32942853,0.00013698,2]
[333975989,1722659441751,-500.0,0.00013698,2]
[333975990,1722659441761,-500.0,0.00013698,2]
[333975991,1722659441770,-500.0,0.00013698,2]
[333975992,1722659441779,-500.0,0.00013698,2]
[333975993,1722659441789,-317.95243065,0.00013698,2]
[333975994,1722659441799,-500.0,0.00013698,2]
[333975995,1722659441809,-500.0,0.00013698,2]
[333975996,1722659441818,-390.86600594,0.00013698,2]
[333975997,1722659441828,-500.0,0.00013698,2]
[333975998,1722659441838,-502.48619921,0.00013698,2]
[333975999,1722659441847,-500.0,0.00013698,2]
[333976000,1722659441857,-500.0,0.00013698,2]
[333976001,1722659441866,-500.0,0.00013698,2]
[333976002,1722659441876,-500.0,0.00013698,2]
[333976003,1722659441885,-501.28911878,0.00013698,2]
[333976004,1722659441896,-500.0,0.00013698,2]
[333976005,1722659441906,-225.39159938,0.00013698,2]
[333976006,1722659441917,-499.99999999,0.00013698,2]
[333976007,1722659441928,-151.0,0.00013698,2]
[333976008,1722659441937,-151.0,0.00013698,2]
[333976009,1722659441948,-500.0,0.00013698,2]
[333976010,1722659441960,-500.0,0.00013698,2]
[333976011,1722659441970,-193.6297432,0.00013698,2]
[333976012,1722659441980,-504.732386,0.00013698,2]
[333976013,1722659441991,-500.0,0.00013698,2]
[333976014,1722659442000,-500.0,0.00013698,2]
[333976015,1722659442010,-500.0,0.00013698,2]
[333976016,1722659442019,-500.0,0.00013698,2]
[333976017,1722659442030,-1274.59,0.00013698,2]
[333976018,1722659442042,-500.0,0.00013698,2]
[333976019,1722659442052,-500.0,0.00013698,2]
[333976020,1722659442063,-505.03278455,0.00013698,2]
[333976021,1722659442076,-500.0,0.00013698,2]
[333976022,1722659442086,-507.8061347,0.00013698,2]
[333976023,1722659442097,-500.0,0.00013698,2]
[333976024,1722659442109,-500.0,0.00013698,2]
[333976025,1722659442120,-501.18022568,0.00013698,2]
[333976026,1722659442131,-500.0,0.00013698,2]
[333976027,1722659442142,-515.16777642,0.00013698,2]
[333976028,1722659442154,-500.0,0.00013698,2]
[333976029,1722659442166,-516.84735028,0.00013698,2]
[333976030,1722659442177,-500.0,0.00013698,2]
[333976031,1722659442187,-500.0,0.00013698,2]
[333976032,1722659442197,-500.0,0.00013698,2]
[333976033,1722659442207,-510.01328186,0.00013698,2]
[333976034,1722659442217,-500.0,0.00013698,2]
[333976035,1722659442227,-767.99,0.00013698,2]
[333976036,1722659442238,-500.0,0.00013698,2]
[333976037,1722659442247,-500.0,0.00013698,2]
[333976038,1722659442257,-505.40712946,0.00013698,2]
[333976039,1722659442268,-500.0,0.00013698,2]
[333976040,1722659442278,-500.0,0.00013698,2]
[333976041,1722659442289,-502.89026368,0.00013698,2]
[333976042,1722659442299,-503.64866974,0.00013698,2]
[333976043,1722659442309,-501.22547461,0.00013698,2]
[333976044,1722659442319,-500.0,0.00013698,2]
[333976045,1722659442328,-151.005967,0.00013698,2]
[333976046,1722659442337,-500.0,0.00013698,2]
[333976047,1722659442347,-502.4353529,0.00013698,2]
[333976048,1722659442356,-502.70396112,0.00013698,2]
[333976049,1722659442365,-500.0,0.00013698,2]
[333976050,1722659442374,-500.0,0.00013698,2]
[333976051,1722659442388,-500.0,0.00013698,2]
[333976052,1722659442397,-504.37487459,0.00013698,2]
[333976053,1722659442407,-500.0,0.00013698,2]
[333976054,1722659442416,-527.9305888,0.00013698,2]
[333976055,1722659442427,-500.0,0.00013698,2]
[333976056,1722659442438,-519.41162688,0.00013698,2]
[333976057,1722659442447,-503.44149162,0.00013698,2]
[333976058,1722659442460,-508.39845061,0.00013698,2]
[333976059,1722659442469,-500.0,0.00013698,2]
[333976060,1722659442478,-502.87523652,0.00013698,2]
[333976061,1722659442488,-500.0,0.00013698,2]
[333976062,1722659442497,-271.22465251,0.00013698,2]
[333976063,1722659442507,-500.0,0.00013698,2]
[333976064,1722659442516,-506.00803671,0.00013698,2]
[333976065,1722659442525,-501.07907325,0.00013698,2]
[333976066,1722659442535,-500.0,0.00013698,2]
[333976067,1722659442544,-500.0,0.00013698,2]
[333976068,1722659442553,-500.0,0.00013698,2]
[333976069,1722659442562,-500.0,0.00013698,2]
[333976070,1722659442571,-508.99374725,0.00013698,2]
[333976071,1722659442580,-500.0,0.00013698,2]
[333976072,1722659442589,-500.0,0.00013698,2]
[333976073,1722659442598,-500.0,0.00013698,2]
[333976074,1722659442608,-500.0,0.00013698,2]
[333976075,1722659442616,-500.0,0.00013698,2]
[333976076,1722659442626,-500.0,0.00013698,2]
[333976077,1722659442635,-500.0,0.00013698,2]
[333976078,1722659442644,-501.67878403,0.00013698,2]
[333976079,1722659442654,-509.97900109,0.00013698,2]
[333976080,1722659442666,-500.0,0.00013698,2]
[333976081,1722659442678,-504.95048705,0.00013698,2]
[333976082,1722659442687,-151.0,0.00013698,2]
[333976083,1722659442696,-151.0,0.00013698,2]
[333976084,1722659442706,-520.59,0.00013698,2]
[333976085,1722659442715,-151.0,0.00013698,2]
[333976086,1722659442724,-500.0,0.00013698,2]
[333976087,1722659442732,-500.0,0.00013698,2]
[333976088,1722659442741,-500.0,0.00013698,2]
[333976089,1722659442750,-529.3789803,0.00013698,2]
[333976090,1722659442758,-500.0,0.00013698,2]
[333976091,1722659442767,-500.0,0.00013698,2]
[333976092,1722659442776,-500.0,0.00013698,2]
[333976093,1722659442784,-500.0,0.00013698,2]
[333976094,1722659442793,-502.88295275,0.00013698,2]
[333976095,1722659442804,-500.0,0.00013698,2]
[333976096,1722659442814,-500.0,0.00013698,2]
[333976097,1722659442824,-519.83280494,0.00013698,2]
[333976098,1722659442834,-500.0,0.00013698,2]
[333976099,1722659442844,-500.0,0.00013698,2]
[333976100,1722659442853,-500.0,0.00013698,2]
[333976101,1722659442862,-151.0,0.00013698,2]
[333976102,1722659442871,-151.0,0.00013698,2]
[333976103,1722659442881,-244.264047,0.00013698,2]
[333976104,1722659442891,-500.0,0.00013698,2]
[333976105,1722659442900,-503.51888383,0.00013698,2]
[333976106,1722659442910,-500.0,0.00013698,2]
[333976108,1722659442921,-500.0,0.00013698,2]
[333976109,1722659442931,-519.72007247,0.00013698,2]
[333976110,1722659442940,-500.0,0.00013698,2]
[333976111,1722659442950,-500.0,0.00013698,2]
[333976112,1722659442959,-704.78,0.00013698,2]
[333976113,1722659442968,-500.0,0.00013698,2]
[333976114,1722659442979,-500.0,0.00013698,2]
[333976115,1722659442990,-500.0,0.00013698,2]
[333976116,1722659443002,-151.0,0.00013698,2]
[333976117,1722659443013,-151.0,0.00013698,2]
[333976118,1722659443023,-151.0,0.00013698,2]
[333976119,1722659443035,-151.0,0.00013698,2]
[333976120,1722659443048,-151.0,0.00013698,2]
[333976121,1722659443058,-500.0,0.00013698,2]
[333976122,1722659443068,-527.01426264,0.00013698,2]
[333976123,1722659443080,-500.0,0.00013698,2]
[333976124,1722659443089,-500.0,0.00013698,2]
[333976125,1722659443098,-204.11846312,0.00013698,2]
[333976127,1722659443108,-182.07863831,0.00013698,2]
[333976130,1722659443118,-394.00287864,0.00013698,2]
[333976132,1722659443127,-500.0,0.00013698,2]
[333976133,1722659443136,-500.0,0.00013698,2]
[333976135,1722659443146,-500.0,0.00013698,2]
[333976136,1722659443155,-500.0,0.00013698,2]
[333976137,1722659443165,-500.0,0.00013698,2]
[333976138,1722659443175,-465.08995257,0.00013698,2]
[333976139,1722659443185,-500.0,0.00013698,2]
[333976140,1722659443267,-500.0,0.00013698,2]
[333976141,1722659443277,-500.0,0.00013698,2]
[333976142,1722659443288,-500.0,0.00013698,2]
[333976143,1722659443297,-500.0,0.00013698,2]
[333976144,1722659443306,-479.6951951,0.00013698,2]
[333976145,1722659443315,-508.80427827,0.00013698,2]
[333976147,1722659443325,-500.0,0.00013698,2]
[333976148,1722659443336,-500.0,0.00013698,2]
[333976149,1722659443347,-501.51688979,0.00013698,2]
[333976150,1722659443357,-517.59527975,0.00013698,2]
[333976151,1722659443368,-500.0,0.00013698,2]
[333976152,1722659443380,-500.0,0.00013698,2]
[333976153,1722659443393,-500.0,0.00013698,2]
[333976154,1722659443403,-500.0,0.00013698,2]
[333976155,1722659443415,-500.0,0.00013698,2]
[333976156,1722659443427,-500.0,0.00013698,2]
[333976157,1722659443437,-500.0,0.00013698,2]
[333976158,1722659443448,-878.77,0.00013698,2]
[333976159,1722659443459,-500.0,0.00013698,2]
[333976160,1722659443472,-512.58577606,0.00013698,2]
[333976161,1722659443483,-152.402326,0.00013698,2]
[333976162,1722659443493,-500.0,0.00013698,2]
[333976163,1722659443505,-502.79305012,0.00013698,2]
[333976164,1722659443516,-273.17894821,0.00013698,2]
[333976165,1722659443526,-500.55305366,0.00013698,2]
[333976166,1722659443535,-500.0,0.00013698,2]
[333976167,1722659443545,-500.0,0.00013698,2]
[333976168,1722659443554,-396.251569,0.00013698,2]
[333976169,1722659443563,-545.03813334,0.00013698,2]
[333976170,1722659443573,-396.251569,0.00013698,2]
[333976171,1722659443582,-396.251569,0.00013698,2]
[333976172,1722659443591,-504.77654297,0.00013698,2]
[333976173,1722659443601,-396.251569,0.00013698,2]
[333976174,1722659443610,-396.251569,0.00013698,2]
[333976175,1722659443620,-502.8675988,0.00013698,2]
[333976176,1722659443630,-396.251569,0.00013698,2]
[333976177,1722659443640,-396.251569,0.00013698,2]